fUST/lending_fUST_20250102
["ID","MTS","AMOUNT","RATE_DAILY","PERIOD"]
[347409890,1735773042638,-2735.09,0.00019178,2]
[347409891,1735773042647,-500.0,0.00019178,2]
[347409892,1735773042656,-520.23,0.00019178,2]
[347409893,1735773042665,-151.0,0.00019178,2]
[347409894,1735773042675,-151.0,0.00019178,2]
[347409895,1735773042684,-500.0,0.00019178,2]
[347409896,1735773042693,-500.0,0.00019178,2]
[347409897,1735773042702,-500.0,0.00019178,2]
[347409898,1735773042713,-1424.38,0.00019178,2]
[347409899,1735773042722,-658.06,0.00019178,2]
[347409900,1735773042731,-500.0,0.00019178,2]
[347409901,1735773042740,-152.47,0.00019178,2]
[347409902,1735773042749,-175.469522,0.00019178,2]
[347409903,1735773042758,-1061.33,0.000192,2]
[347409904,1735773042767,-1421.58901458,0.00019215,2]
[347409905,1735773042776,-9911.6656402,0.00019229,2]
[347409906,1735773042785,-3000.0,0.000193,2]
[347409907,1735773042794,-1421.58901458,0.00019352,2]
[347409908,1735773042803,-238.0,0.0001945,2]
[347409909,1735773042812,-500.0,0.00019451,2]
[347409910,1735773042821,-203.37853039,0.00019451,2]
[347409911,1735773042831,-375.28739979,0.00019451,2]
[347409912,1735773042840,-473.39985769,0.00019452,3]
[347409913,1735773042850,-500.0,0.00019452,3]
[347409914,1735773042859,-500.0,0.00019452,3]
[347409915,1735773042869,-500.0,0.00019452,3]
[347409916,1735773042878,-500.0,0.00019452,3]
[347409917,1735773042887,-501.5103037,0.00019452,3]
[347409918,1735773042896,-500.0,0.00019452,2]
[347409919,1735773042905,-500.0,0.00019452,3]
[347409920,1735773042914,-500.0,0.00019452,3]
[347409921,1735773042923,-500.0,0.00019452,3]
[347409922,1735773042933,-500.0,0.00019452,3]
[347409923,1735773042942,-500.0,0.00019452,3]
[347409924,1735773042951,-500.0,0.00019452,3]
[347409925,1735773042963,-500.0,0.00019452,3]
[347409926,1735773042973,-230.39394443,0.00019452,3]
[347409927,1735773042982,-500.0,0.00019452,3]
[347409928,1735773042992,-151.0,0.00019452,2]
[347409929,1735773043001,-151.0,0.00019452,2]
[347409930,1735773043011,-151.0,0.00019452,2]
[347409931,1735773043020,-500.0,0.00019452,3]
[347409932,1735773043030,-507.3638673,0.00019452,3]
[347409933,1735773043039,-151.0,0.00019452,2]
[347409934,1735773043049,-151.0,0.00019452,2]
[347409935,1735773043059,-151.0,0.00019452,2]
[347409936,1735773043068,-177.947304,0.00019452,2]
[347409937,1735773043078,-500.0,0.00019452,3]
[347409939,1735773043087,-500.0,0.00019452,3]
[347409941,1735773043097,-500.0,0.00019452,3]
[347409943,1735773043106,-500.0,0.00019452,3]
[347409944,1735773043116,-500.0,0.00019452,3]
[347409946,1735773043125,-483.38939409,0.00019452,3]
[347409948,1735773043135,-500.0,0.00019452,3]
[347409950,1735773043144,-1803.2,0.00019452,2]
[347409952,1735773043153,-500.0,0.00019452,3]
[347409954,1735773043162,-5833.17,0.00019452,3]
[347409955,1735773043172,-500.0,0.00019452,3]
[347409957,1735773043181,-500.0,0.00019452,3]
[347409959,1735773043190,-500.0,0.00019452,3]
[347409961,1735773043207,-151.0,0.00019452,2]
[347409962,1735773043216,-151.0,0.00019452,2]
[347409964,1735773043225,-151.0,0.00019452,2]
[347409966,1735773043235,-500.0,0.00019452,3]
[347409968,1735773043246,-598.62,0.00019452,3]
[347409970,1735773043255,-598.33,0.00019452,3]
[347409972,1735773043265,-500.0,0.00019452,3]
[347409974,1735773043274,-500.0,0.00019452,3]
[347409976,1735773043283,-500.0,0.00019452,3]
[347409977,1735773043293,-500.0,0.00019452,3]
[347409979,1735773043302,-500.0,0.00019452,3]
[347409980,1735773043311,-500.0,0.00019452,3]
[347409981,1735773043321,-500.0,0.00019452,3]
[347409982,1735773043330,-500.0,0.00019452,3]
[347409983,1735773043340,-521.63,0.00019452,3]
[347409984,1735773043349,-515.04,0.00019452,3]
[347409985,1735773043358,-521.70780296,0.00019452,3]
[347409986,1735773043368,-500.0,0.00019452,3]
[347409987,1735773043379,-500.0,0.00019452,3]
[347409988,1735773043388,-500.0,0.00019452,3]
[347409989,1735773043400,-500.0,0.00019452,3]
[347409990,1735773043409,-500.0,0.00019452,3]
[347409991,1735773043419,-500.0,0.00019452,3]
[347409993,1735773043428,-151.0,0.00019452,2]
[347409995,1735773043438,-500.0,0.00019452,3]
[347409996,1735773043447,-500.0,0.00019452,3]
[347409997,1735773043459,-500.0,0.00019452,3]
[347409998,1735773043468,-500.0,0.00019452,3]
[347409999,1735773043482,-500.0,0.00019452,3]
[347410001,1735773043491,-151.0,0.00019452,2]
[347410003,1735773043500,-733.07,0.00019452,3]
[347410005,1735773043510,-238.66439308,0.00019452,3]
[347410007,1735773043520,-500.0,0.00019452,3]
[347410009,1735773043529,-500.0,0.00019452,3]
[347410011,1735773043538,-500.0,0.00019452,3]
[347410013,1735773043547,-500.0,0.00019452,3]
[347410015,1735773043556,-500.0,0.00019452,3]
[347410018,1735773043567,-500.0,0.00019452,3]
[347410020,1735773043576,-520.04,0.00019452,3]
[347410022,1735773043586,-5694.35,0.00019452,3]
[347410024,1735773043595,-500.0,0.00019452,3]
[347410026,1735773043604,-524.57,0.00019452,3]
[347410028,1735773043616,-500.0,0.00019452,3]
[347410030,1735773043626,-877.48,0.00019452,3]
[347410032,1735773043635,-500.0,0.00019452,3]
[347410034,1735773043644,-200.0,0.00019452,3]
[347410036,1735773043653,-151.0,0.00019452,2]
[347410038,1735773043662,-281.737648,0.00019452,2]
[347410040,1735773043671,-500.0,0.00019452,3]
[347410042,1735773043680,-151.0,0.00019452,2]
[347410044,1735773043689,-500.0,0.00019452,3]
[347410046,1735773043698,-151.0,0.00019452,2]
[347410048,1735773043707,-151.0,0.00019452,2]
[347410050,1735773043716,-500.0,0.00019452,3]
[347410052,1735773043726,-232.921666,0.00019452,2]
[347410054,1735773043735,-500.0,0.00019452,3]
[347410056,1735773043744,-500.0,0.00019452,3]
[347410058,1735773043753,-1035.93,0.00019452,3]
[347410060,1735773043762,-500.0,0.00019452,3]
[347410062,1735773043771,-500.0,0.00019452,3]
[347410064,1735773043780,-858.45,0.00019452,3]
[347410066,1735773043789,-685.7,0.00019452,3]
[347410068,1735773043798,-500.0,0.00019452,3]
[347410070,1735773043807,-1186.47,0.00019452,3]
[347410072,1735773043816,-674.09,0.00019452,3]
[347410074,1735773043826,-151.0,0.00019452,2]
[347410076,1735773043835,-151.0,0.00019452,2]
[347410078,1735773043844,-151.0,0.00019452,2]
[347410080,1735773043853,-151.0,0.00019452,2]
[347410082,1735773043862,-500.0,0.00019452,3]
[347410084,1735773043871,-500.0,0.00019452,3]
[347410086,1735773043880,-1016.99,0.00019452,3]
[347410088,1735773043889,-500.0,0.00019452,3]
[347410090,1735773043898,-500.0,0.00019452,3]
[347410092,1735773043908,-693.09,0.00019452,3]
[347410094,1735773043917,-679.59,0.00019452,3]
[347410096,1735773043926,-500.0,0.00019452,3]
[347410098,1735773043936,-500.0,0.00019452,3]
[347410100,1735773043945,-500.0,0.00019452,3]
[347410102,1735773043956,-500.0,0.00019452,3]
[347410104,1735773043965,-500.0,0.00019452,3]
[347410106,1735773043974,-224.489347,0.00019452,2]
[347410108,1735773043983,-405.55012744,0.00019452,3]
[347410110,1735773043992,-275.85281345,0.00019452,3]
[347410112,1735773044002,-500.0,0.00019452,3]
[347410114,1735773044011,-500.0,0.00019452,3]
[347410116,1735773044020,-500.0,0.00019452,3]
[347410118,1735773044029,-500.0,0.00019452,3]
[347410120,1735773044038,-500.0,0.00019452,3]
[347410122,1735773044047,-500.0,0.00019452,3]
[347410124,1735773044056,-787.41,0.00019452,3]
[347410126,1735773044065,-702.39,0.00019452,3]
[347410128,1735773044075,-500.0,0.00019452,3]
[347410130,1735773044084,-1597.06,0.00019452,3]
[347410132,1735773044093,-760.52,0.00019452,3]
[347410134,1735773044103,-500.0,0.00019452,3]
[347410136,1735773044112,-1480.4,0.00019452,3]
[347410138,1735773044121,-749.27,0.00019452,3]
[347410140,1735773044130,-500.0,0.00019452,3]
[347410142,1735773044139,-594.79,0.00019452,3]
[347410156,1735773044246,-1419.58,0.00019452,3]
[347410158,1735773044270,-500.0,0.00019452,3]
[347410160,1735773044279,-500.0,0.00019452,3]
[347410162,1735773044288,-1097.05,0.00019452,3]
[347410164,1735773044298,-500.0,0.00019452,3]
[347410166,1735773044307,-500.0,0.00019452,3]
[347410168,1735773044317,-779.16,0.00019452,3]
[347410170,1735773044328,-500.0,0.00019452,3]
[347410172,1735773044338,-614.68,0.00019452,3]
[347410174,1735773044347,-500.0,0.00019452,3]
[347410176,1735773044356,-975.3,0.00019452,3]
[347410178,1735773044365,-500.0,0.00019452,3]
[347410180,1735773044374,-500.0,0.00019452,3]
[347410182,1735773044383,-623.30972656,0.00019452,3]
[347410184,1735773044392,-891.43,0.00019452,3]
[347410186,1735773044402,-2174.38,0.00019452,3]
[347410188,1735773044411,-500.0,0.00019452,3]
[347410190,1735773044421,-669.7,0.00019452,3]
[347410192,1735773044431,-892.51,0.00019452,3]
[347410194,1735773044440,-500.0,0.00019452,3]
[347410196,1735773044450,-816.61,0.00019452,3]
[347410198,1735773044461,-500.0,0.00019452,3]
[347410200,1735773044471,-500.0,0.00019452,3]
[347410202,1735773044480,-500.0,0.00019452,3]
[347410204,1735773044489,-500.0,0.00019452,3]
[347410206,1735773044499,-500.0,0.00019452,3]
[347410208,1735773044508,-1168.42,0.00019452,3]
[347410210,1735773044517,-500.0,0.00019452,3]
[347410212,1735773044526,-500.0,0.00019452,3]
[347410214,1735773044536,-1073.64,0.00019452,3]
[347410216,1735773044545,-500.0,0.00019452,3]
[347410218,1735773044554,-500.0,0.00019452,3]
[347410220,1735773044564,-1001.66,0.00019452,3]
[347410222,1735773044573,-500.0,0.00019452,3]
[347410224,1735773044582,-500.0,0.00019452,3]
[347410227,1735773044592,-1335.74,0.00019452,3]
[347410229,1735773044601,-500.0,0.00019452,3]
[347410231,1735773044610,-500.0,0.00019452,3]
[347410233,1735773044620,-501.45,0.00019452,3]
[347410235,1735773044629,-500.0,0.00019452,3]
[347410237,1735773044638,-3471.02,0.00019452,3]
[347410239,1735773044647,-1684.0,0.00019452,3]
[347410241,1735773044656,-500.0,0.00019452,3]
[347410243,1735773044665,-6864.22362999,0.00019452,7]
[347410245,1735773044674,-500.0,0.00019452,3]
[347410247,1735773044683,-975.35,0.00019452,3]
[347410249,1735773044693,-3993.68,0.00019452,3]
[347410251,1735773044702,-675.96,0.00019452,3]
[347410253,1735773044713,-500.0,0.00019452,3]
[347410255,1735773044722,-1684.18,0.00019452,3]
[347410257,1735773044732,-500.0,0.00019452,3]
[347410259,1735773044741,-544.05,0.00019452,3]
[347410261,1735773044750,-855.7,0.00019452,3]
[347410263,1735773044759,-674.42,0.00019452,3]
[347410265,1735773044768,-1336.09,0.00019452,3]
[347410267,1735773044778,-500.0,0.00019452,3]
[347410269,1735773044787,-207.3463495,0.00019452,3]
[347410271,1735773044796,-500.0,0.00019452,3]
[347410273,1735773044805,-4145.12,0.00019452,3]
[347410275,1735773044814,-500.0,0.00019452,3]
[347410277,1735773044823,-29365.7,0.00019452,3]
[347410279,1735773044833,-500.0,0.00019452,3]
[347410281,1735773044842,-2528.71,0.00019452,3]
[347410283,1735773044851,-2655.82,0.00019452,3]
[347410285,1735773044862,-500.0,0.00019452,3]
[347410287,1735773044872,-500.0,0.00019452,3]
[347410289,1735773044881,-500.0,0.00019452,3]
[347410291,1735773044891,-509.57,0.00019452,3]
[347410293,1735773044900,-1117.29,0.00019452,3]
[347410295,1735773044909,-500.0,0.00019452,3]
[347410297,1735773044918,-728.25,0.00019452,3]
[347410299,1735773044928,-515.35386234,0.00019452,3]
[347410301,1735773044937,-500.0,0.00019452,3]
[347410303,1735773044947,-500.0,0.00019452,3]
[347410305,1735773044957,-1480.38,0.00019452,3]
[347410307,1735773044966,-638.88,0.00019452,3]
[347410309,1735773044976,-500.0,0.00019452,3]
[347410312,1735773044985,-903.87,0.00019452,3]
[347410314,1735773044994,-669.57,0.00019452,3]
[347410316,1735773045003,-500.0,0.00019452,3]
[347410318,1735773045012,-1929.52,0.00019452,3]
[347410320,1735773045023,-500.0,0.00019452,3]
[347410322,1735773045032,-500.0,0.00019452,3]
[347410324,1735773045042,-2735.09,0.00019452,3]
[347410326,1735773045051,-520.23,0.00019452,3]
[347410328,1735773045061,-500.0,0.00019452,3]
[347410330,1735773045070,-500.0,0.00019452,3]
[347410332,1735773045079,-500.0,0.00019452,3]
[347410334,1735773045089,-500.0,0.00019452,3]
[347410336,1735773045099,-1424.38,0.00019452,3]
[347410338,1735773045108,-658.06,0.00019452,3]
[347410339,1735773045117,-1421.58901458,0.00019489,2]
[347410342,1735773045127,-150.0,0.00019495,2]
[347410343,1735773045136,-150.0,0.00019495,2]
[347410346,1735773045146,-186.9564952,0.00019528,2]
[347410347,1735773045155,-2089.0,0.0001955,2]
[347410350,1735773045167,-534.0,0.0001955,2]
[347410351,1735773045176,-2409.0,0.0001955,2]
[347410353,1735773045186,-151.0,0.00019566,2]
[347410356,1735773045198,-9911.6656402,0.00019589,2]
[347410358,1735773045208,-1421.58901458,0.00019626,2]
[347410360,1735773045218,-222.74911425,0.00019725,2]
[347410362,1735773045227,-500.0,0.00019726,3]
[347410364,1735773045236,-500.0,0.00019726,2]
[347410366,1735773045246,-500.0,0.00019726,3]
[347410367,1735773045256,-500.0,0.00019726,3]
[347410370,1735773045266,-500.0,0.00019726,3]
[347410372,1735773045278,-151.0,0.00019726,2]
[347410374,1735773045288,-151.0,0.00019726,2]
[347410376,1735773045297,-195.7175,0.00019726,2]
[347410378,1735773045307,-500.0,0.00019726,3]
[347410380,1735773045316,-500.0,0.00019726,3]
[347410381,1735773045326,-263.14454872,0.00019726,3]
[347410384,1735773045335,-500.0,0.00019726,3]
[347410386,1735773045345,-500.0,0.00019726,3]
[347410387,1735773045354,-500.0,0.00019726,3]
[347410390,1735773045364,-500.0,0.00019726,3]
[347410391,1735773045374,-1803.2,0.00019726,2]
[347410393,1735773045383,-500.0,0.00019726,3]
[347410396,1735773045393,-5833.17,0.00019726,3]
[347410398,1735773045403,-500.0,0.00019726,3]
[347410400,1735773045412,-500.0,0.00019726,3]
[347410402,1735773045421,-151.0,0.00019726,2]
[347410404,1735773045430,-287.842535,0.00019726,2]
[347410405,1735773045439,-500.0,0.00019726,3]
[347410407,1735773045449,-598.62,0.00019726,3]
[347410409,1735773045458,-598.33,0.00019726,3]
[347410411,1735773045468,-500.0,0.00019726,3]
[347410414,1735773045479,-500.0,0.00019726,3]
[347410416,1735773045488,-500.0,0.00019726,3]
[347410418,1735773045499,-500.0,0.00019726,3]
[347410420,1735773045508,-500.0,0.00019726,3]
[347410422,1735773045519,-500.0,0.00019726,3]
[347410424,1735773045528,-521.63,0.00019726,3]
[347410426,1735773045537,-515.04,0.00019726,3]
[347410428,1735773045547,-500.0,0.00019726,3]
[347410430,1735773045556,-500.0,0.00019726,3]
[347410432,1735773045565,-500.0,0.00019726,3]
[347410434,1735773045575,-500.0,0.00019726,3]
[347410436,1735773045584,-500.0,0.00019726,3]
[347410438,1735773045593,-500.0,0.00019726,3]
[347410440,1735773045603,-500.0,0.00019726,3]
[347410441,1735773045612,-500.0,0.00019726,3]
[347410442,1735773045621,-500.0,0.00019726,3]
[347410443,1735773045630,-500.0,0.00019726,3]
[347410444,1735773045639,-733.07,0.00019726,3]
[347410445,1735773045648,-500.0,0.00019726,3]
[347410446,1735773045658,-500.0,0.00019726,3]
[347410447,1735773045667,-500.0,0.00019726,3]
[347410448,1735773045676,-500.0,0.00019726,3]
[347410449,1735773045685,-500.0,0.00019726,3]
[347410450,1735773045694,-520.04,0.00019726,3]
[347410451,1735773045703,-5694.35,0.00019726,3]
[347410452,1735773045714,-500.0,0.00019726,3]
[347410453,1735773045723,-524.57,0.00019726,3]
[347410454,1735773045732,-500.0,0.00019726,3]
[347410455,1735773045741,-877.48,0.00019726,3]
[347410456,1735773045751,-410.06867226,0.00019726,3]
[347410457,1735773045761,-200.0,0.00019726,3]
[347410458,1735773045771,-500.0,0.00019726,3]
[347410459,1735773045780,-385.7267071,0.00019726,3]
[347410460,1735773045789,-500.0,0.00019726,3]
[347410461,1735773045798,-500.0,0.00019726,3]
[347410462,1735773045807,-1035.93,0.00019726,3]
[347410463,1735773045816,-500.0,0.00019726,3]
[347410464,1735773045825,-500.0,0.00019726,3]
[347410465,1735773045835,-858.45,0.00019726,3]
[347410466,1735773045844,-685.7,0.00019726,3]
[347410467,1735773045853,-500.0,0.00019726,3]
[347410468,1735773045862,-1186.47,0.00019726,3]
[347410469,1735773045872,-674.09,0.00019726,3]
[347410471,1735773045881,-151.0,0.00019726,2]
[347410473,1735773045890,-176.158782,0.00019726,2]
[347410475,1735773045900,-500.0,0.00019726,3]
[347410477,1735773045909,-500.0,0.00019726,3]
[347410479,1735773045920,-1016.99,0.00019726,3]
[347410481,1735773045929,-500.0,0.00019726,3]
[347410483,1735773045938,-500.0,0.00019726,3]
[347410485,1735773045947,-693.09,0.00019726,3]
[347410487,1735773045957,-679.59,0.00019726,3]
[347410489,1735773045966,-500.0,0.00019726,3]
[347410491,1735773045975,-504.17671631,0.00019726,3]
[347410493,1735773045984,-500.0,0.00019726,3]
[347410495,1735773045993,-500.0,0.00019726,3]
[347410497,1735773046003,-500.0,0.00019726,3]
[347410499,1735773046011,-500.0,0.00019726,3]
[347410501,1735773046020,-500.0,0.00019726,3]
[347410503,1735773046029,-500.0,0.00019726,3]
[347410504,1735773046039,-500.0,0.00019726,3]
[347410507,1735773046048,-334.7362487,0.00019726,3]
[347410509,1735773046058,-787.41,0.00019726,3]
[347410510,1735773046067,-702.39,0.00019726,3]
[347410512,1735773046077,-500.0,0.00019726,3]
[347410514,1735773046086,-1597.06,0.00019726,3]
[347410516,1735773046096,-760.52,0.00019726,3]
[347410518,1735773046106,-1480.4,0.00019726,3]
[347410521,1735773046115,-749.27,0.00019726,3]
[347410523,1735773046124,-500.0,0.00019726,3]
[347410525,1735773046133,-594.79,0.00019726,3]
[347410527,1735773046143,-1419.58,0.00019726,3]
[347410529,1735773046152,-500.0,0.00019726,3]
[347410531,1735773046162,-500.0,0.00019726,3]
[347410533,1735773046171,-1097.05,0.00019726,3]
[347410535,1735773046180,-500.0,0.00019726,3]
[347410537,1735773046191,-500.0,0.00019726,3]
[347410539,1735773046205,-779.16,0.00019726,3]
[347410541,1735773046215,-500.0,0.00019726,3]
[347410543,1735773046225,-614.68,0.00019726,3]
[347410545,1735773046235,-975.3,0.00019726,3]
[347410547,1735773046245,-500.0,0.00019726,3]
[347410549,1735773046254,-500.0,0.00019726,3]
[347410552,1735773046265,-891.43,0.00019726,3]
[347410554,1735773046276,-2174.38,0.00019726,3]
[347410556,1735773046286,-500.0,0.00019726,3]
[347410558,1735773046295,-669.7,0.00019726,3]
[347410560,1735773046304,-892.51,0.00019726,3]
[347410562,1735773046314,-500.0,0.00019726,3]
[347410564,1735773046323,-816.61,0.00019726,3]
[347410566,1735773046332,-500.0,0.00019726,3]
[347410568,1735773046341,-570.04417982,0.00019726,3]
[347410570,1735773046351,-500.0,0.00019726,3]
[347410572,1735773046360,-500.0,0.00019726,3]
[347410574,1735773046371,-1168.42,0.00019726,3]
[347410576,1735773046380,-500.0,0.00019726,3]
[347410578,1735773046389,-500.0,0.00019726,3]
[347410580,1735773046399,-1073.64,0.00019726,3]
[347410582,1735773046408,-500.0,0.00019726,3]
[347410584,1735773046418,-500.0,0.00019726,3]
[347410586,1735773046428,-500.0,0.00019726,3]
[347410588,1735773046439,-1001.66,0.00019726,3]
[347410590,1735773046448,-500.0,0.00019726,3]
[347410592,1735773046457,-500.0,0.00019726,3]
[347410594,1735773046468,-1335.74,0.00019726,3]
[347410596,1735773046477,-500.0,0.00019726,3]
[347410598,1735773046487,-500.0,0.00019726,3]
[347410600,1735773046496,-501.45,0.00019726,3]
[347410602,1735773046506,-500.0,0.00019726,3]
[347410604,1735773046516,-3471.02,0.00019726,3]
[347410606,1735773046525,-1684.0,0.00019726,3]
[347410608,1735773046534,-500.0,0.00019726,3]
[347410610,1735773046544,-500.0,0.00019726,3]
[347410612,1735773046553,-975.35,0.00019726,3]
[347410614,1735773046563,-3993.68,0.00019726,3]
[347410616,1735773046572,-675.96,0.00019726,3]
[347410618,1735773046581,-500.0,0.00019726,3]
[347410620,1735773046591,-1684.18,0.00019726,3]
[347410634,1735773046600,-500.0,0.00019726,3]
[347410636,1735773046718,-544.05,0.00019726,3]
[347410638,1735773046728,-855.7,0.00019726,3]
[347410640,1735773046737,-674.42,0.00019726,3]
[347410642,1735773046747,-1336.09,0.00019726,3]
[347410644,1735773046756,-500.0,0.00019726,3]
[347410646,1735773046765,-500.0,0.00019726,3]
[347410648,1735773046775,-4145.12,0.00019726,3]
[347410650,1735773046784,-500.0,0.00019726,3]
[347410652,1735773046793,-29365.7,0.00019726,3]
[347410654,1735773046802,-500.0,0.00019726,3]
[347410656,1735773046811,-2528.71,0.00019726,3]
[347410658,1735773046820,-2655.82,0.00019726,3]
[347410660,1735773046829,-500.0,0.00019726,3]
[347410662,1735773046839,-500.0,0.00019726,3]
[347410664,1735773046849,-500.0,0.00019726,3]
[347410666,1735773046858,-509.57,0.00019726,3]
[347410669,1735773046871,-1117.29,0.00019726,3]
[347410671,1735773046880,-500.0,0.00019726,3]
[347410673,1735773046890,-728.25,0.00019726,3]
[347410675,1735773046899,-500.0,0.00019726,3]
[347410677,1735773046908,-500.0,0.00019726,3]
[347410679,1735773046918,-1480.38,0.00019726,3]
[347410681,1735773046927,-638.88,0.00019726,3]
[347410683,1735773046936,-500.0,0.00019726,3]
[347410685,1735773046946,-903.87,0.00019726,3]
[347410687,1735773046955,-669.57,0.00019726,3]
[347410689,1735773046966,-1929.52,0.00019726,3]
[347410691,1735773046975,-500.0,0.00019726,3]
[347410693,1735773046984,-500.0,0.00019726,3]
[347410695,1735773046993,-520.23,0.00019726,3]
[347410697,1735773047003,-500.0,0.00019726,3]
[347410699,1735773047013,-500.0,0.00019726,3]
[347410701,1735773047022,-2735.09,0.00019726,3]
[347410703,1735773047032,-500.0,0.00019726,3]
[347410705,1735773047041,-500.0,0.00019726,3]
[347410707,1735773047051,-1424.38,0.00019726,3]
[347410709,1735773047060,-658.06,0.00019726,3]
[347410711,1735773047069,-500.36988426,0.00019773,2]
[347410713,1735773047078,-500.0,0.00019773,2]
[347410715,1735773047088,-500.0,0.00019773,2]
[347410717,1735773047097,-9118.51,0.000198,2]
[347410719,1735773047106,-12845.42,0.000198,2]
[347410722,1735773047116,-10317.16417232,0.000198,2]
[347410724,1735773047126,-500.0,0.00019825,2]
[347410726,1735773047135,-500.0,0.00019825,2]
[347410728,1735773047145,-152.388252,0.000199,2]
[347410730,1735773047154,-151.0,0.000199,2]
[347410732,1735773047164,-1072.65937832,0.000199,2]
[347410734,1735773047173,-160.0,0.00019999,2]
[347410735,1735773047182,-1656.9157711,0.0002,2]
[347410738,1735773047192,-10096.69074103,0.0002,2]
[347410740,1735773047205,-500.0,0.0002,3]
[347410742,1735773047217,-150.0,0.0002,2]
[347410744,1735773047226,-595.19343663,0.0002,2]
[347410746,1735773047236,-158.36173021,0.0002,30]
[347410748,1735773047245,-20000.0,0.0002,2]
[347410750,1735773047255,-2000.0,0.0002,2]
[347410752,1735773047264,-1132.05967304,0.0002,5]
[347410754,1735773047274,-166.483,0.0002,2]
[347410756,1735773047283,-2000.0,0.0002,2]
[347410758,1735773047293,-500.0,0.0002,2]
[347410760,1735773047302,-4035.09,0.0002,2]
[347410762,1735773047312,-240.80544475,0.0002,3]
[347410764,1735773047322,-500.0,0.0002,3]
[347410766,1735773047331,-500.0,0.0002,3]
[347410768,1735773047340,-500.0,0.0002,3]
[347410770,1735773047349,-500.0,0.0002,3]
[347410772,1735773047359,-216.08731582,0.0002,3]
[347410774,1735773047369,-500.0,0.0002,3]
[347410776,1735773047378,-500.0,0.0002,3]
[347410778,1735773047387,-500.0,0.0002,3]
[347410780,1735773047397,-12434.0,0.0002,2]
[347410782,1735773047406,-1803.2,0.0002,2]
[347410784,1735773047415,-500.0,0.0002,3]
[347410786,1735773047425,-5833.17,0.0002,3]
[347410788,1735773047434,-500.0,0.0002,3]
[347410790,1735773047444,-500.0,0.0002,3]
[347410792,1735773047453,-500.0,0.0002,3]
[347410794,1735773047463,-598.62,0.0002,3]
[347410796,1735773047472,-598.33,0.0002,3]
[347410798,1735773047481,-500.0,0.0002,3]
[347410800,1735773047491,-500.0,0.0002,3]
[347410802,1735773047500,-500.0,0.0002,3]
[347410804,1735773047509,-500.0,0.0002,3]
[347410806,1735773047518,-500.0,0.0002,3]
[347410808,1735773047528,-500.0,0.0002,3]
[347410810,1735773047538,-521.63,0.0002,3]
[347410812,1735773047548,-515.04,0.0002,3]
[347410814,1735773047558,-500.0,0.0002,3]
[347410816,1735773047567,-500.0,0.0002,3]
[347410818,1735773047576,-500.0,0.0002,3]
[347410820,1735773047586,-500.0,0.0002,3]
[347410822,1735773047595,-500.0,0.0002,3]